Cogmind - Beta 15 @@@ ROGUE MODE // 2025.05.14 @ 18:38:27 Player: Bardic Entropy Result: Destroyed by C2-HH1(R) with Subdweller Machine Gun Performance ------------- Evolutions (0) 0 Regions Visited (3) 600 Robots Destroyed (16) 80 Value Destroyed (544) 544 Prototype IDs (11) 220 Alien Tech Used (0) 0 Bonus (0) 0 TOTAL SCORE: 1444 Bonus ------- None Cogmind --------- Core Integrity 0/250 Matter 214/300 Energy 200/200 System Corruption 0% Temperature Cool (0) Movement Rolling (115) Ox1 Location -10/Subcaves Parts ------- > --- POWER (1) -------- Subdweller Power Source > --- PROPULSION (2) --- Compact Wheel > --- UTILITY (2) ------ Small Storage Unit Seismic Detector > --- WEAPON (2) ------- Subdweller Machine Gun Battle Cannon > --- INVENTORY (8) ---- Medium Matter Pod (100) Structural Scanner Heavy Battle Rifle Battle Cannon Peak State ------------ > --- POWER ------------ Light Ion Engine > --- PROPULSION ------- Compact Wheel Subdweller Monowheel > --- UTILITY ---------- Small Storage Unit Seismic Detector > --- WEAPON ----------- Subdweller Machine Gun Heavy Battle Rifle > --- INVENTORY -------- Medium Matter Pod Structural Scanner Subdweller Machine Gun Subdweller Machine Gun Battle Cannon Battle Cannon [Rating: 13] Favorites ----------- Power Light Ion Engine Engine Light Ion Engine Propulsion Light Treads Treads Light Treads Wheel Compact Wheel Utility Small Storage Unit Device Seismic Detector Storage Small Storage Unit Weapon Light Assault Rifle Ballistic Gun Light Assault Rifle Ballistic Cannon Light Cannon Build | -11 -10 -10 -10 ------- Run | Yrd Mat Min Sub Slots Evolved . | . . . . Power . | . . . . Propulsion . | . . . . Utility . | . . . . Weapon . | . . . . Parts Attached 19 | 7 2 . 10 Power 2 | 1 . . 1 Engine 2 | 1 . . 1 Core . | . . . . Reactor . | . . . . Propulsion 5 | 2 . . 3 Treads 2 | 2 . . . Leg . | . . . . Wheel 3 | . . . 3 Hover . | . . . . Flight . | . . . . Utility 3 | 2 1 . . Device 2 | 1 1 . . Storage 1 | 1 . . . Processor . | . . . . Hackware . | . . . . Protection . | . . . . Artifact . | . . . . Weapon 9 | 2 1 . 6 Energy Gun . | . . . . Energy Cannon . | . . . . Ballistic Gun 6 | 2 . . 4 Ballistic Cannon 3 | . 1 . 2 Launcher . | . . . . Special Weapon . | . . . . Impact Weapon . | . . . . Slashing Weapon . | . . . . Piercing Weapon . | . . . . Special Melee Weapon . | . . . . Unidentified Prototypes . | . . . . Parts Lost 7 | . . 1 6 Power 1 | . . . 1 Propulsion 3 | . . . 3 Utility . | . . . . Weapon 3 | . . 1 2 Highest Loss Streak 2 | . . 1 2 To Critical Strikes . | . . . . Average Backups 3 | . 2 3 4 Power . | . . . . Propulsion . | . 1 1 . Utility 1 | . . 2 2 Weapon 1 | . . . 2 Tool/Special . | . . . . Unused Backups 3 | . . . 3 Power . | . . . . Propulsion . | . . . . Utility 2 | . . . 2 Weapon 1 | . . . 1 Tool/Special . | . . . . Average Slot Usage (%) 95 | . 100 99 90 Engine 13 | . 14 14 13 Treads 17 | . 28 28 3 Wheel 7 | . . . 17 Device 14 | . 14 14 14 Storage 14 | . 14 14 14 Ballistic Gun 20 | . 17 18 24 Ballistic Cannon 6 | . 10 9 1 Peak Build Rating 13 | 7 7 7 13 Average Rating 8 | 5 7 6 9 On Entrance 5 | . 7 7 7 Naked Turns . | . . . . Heaviest Build 18 | 11 13 13 18 Greatest Support 40 | 40 40 40 40 Greatest Overweight (x) 3 | 3 . . 1 Average Overweight (x) . | . . . . Largest Inventory Capacity 8 | 8 8 8 8 Average Capacity 7 | 7 8 8 8 Most Carried 7 | 1 4 5 7 Average Carried 3 | . 2 3 4 Final Capacity 8 | 8 8 8 8 Final Carried 4 | 1 4 3 4 Class Distribution -------------------- 100% | Mutant Dominant Class ---------------- Mutant | -10/Materials Mutant | -10/Mines Mutant | -10/Subcaves Resources | -11 -10 -10 -10 ----------- Run | Yrd Mat Min Sub Matter Collected 737 | 290 120 131 196 Remotely . | . . . . Salvage Created 555 | 77 . 209 269 Parts 36 | 9 . 9 18 Haulers Intercepted . | . . . . Recyclers Shooed 1 | . . 1 . Parts Field Recycled . | . . . . Retrieved Matter . | . . . . Parts Self-Destructed 12 | . . . 12 Prevented . | . . . . Kills | -11 -10 -10 -10 ------- Run | Yrd Mat Min Sub Combat Hostiles Destroyed 13 | . . 6 7 Guns 9 | . . 3 6 Cannons 4 | . . 3 1 Classes Destroyed 3 | 1 . 1 1 Tunneler 3 | 3 . . . Grunt 6 | . . 6 . Subdweller 7 | . . . 7 Best Kill Streak 3 | 3 . 2 3 Combat Bots Only 3 | . . 2 3 Max Kills in Single Turn 2 | 2 . 1 1 Gunslinging . | . . . . Exploded . | . . . . Melee . | . . . . Uniques/NPCs Destroyed . | . . . . Combat | -11 -10 -10 -10 -------- Run | Yrd Mat Min Sub Hostile Shots Fired 86 | . 6 49 31 Missed 18 | . 3 9 6 Hits 68 | . 3 40 25 Projectile 68 | . 3 40 25 Critical Strikes 1 | . . 1 . Damage Taken 1132 | . 24 534 574 Core 256 | . . 90 166 Absorbed by Shields . | . . . . Core Remaining (%) 100 | 100 . . . Volleys Fired 79 | 10 . 34 35 Largest 2 | 2 . 2 2 Hottest 66 | 40 . 50 66 Shots Fired 142 | 20 . 60 62 Gun 110 | 20 . 38 52 Cannon 32 | . . 22 10 Launcher . | . . . . Special . | . . . . Kinetic 142 | 20 . 60 62 Thermal . | . . . . Explosive . | . . . . Electromagnetic . | . . . . Robot Hit Streak 20 | 4 . 8 20 Robot Miss Streak 3 | 3 . 2 1 Penetration Max . | . . . . Secondary Targets . | . . . . Shots Hit Robots 96 | 11 . 47 38 Core Hits 33 | 4 . 16 13 Critical Kills . | . . . . Critical Parts Destroyed . | . . . . Critical Strikes 2 | . . 1 1 Destroy 1 | . . . 1 Blast 1 | . . 1 . Melee Attacks . | . . . . Impact . | . . . . Slashing . | . . . . Piercing . | . . . . Sneak Attacks . | . . . . Combat Hostiles . | . . . . Follow-up Attacks . | . . . . Damage Inflicted 1460 | 101 . 555 804 Guns 1014 | 101 . 235 678 Cannons 446 | . . 320 126 Explosions . | . . . . Melee . | . . . . Ramming . | . . . . Kinetic 1460 | 101 . 555 804 Thermal . | . . . . Explosive . | . . . . Electromagnetic . | . . . . Impact . | . . . . Slashing . | . . . . Piercing . | . . . . Highest Corruption . | . . . . Average Corruption . | . . . . Corruption Purged . | . . . . Corruption Blocked . | . . . . Overload Shots . | . . . . Overflow Damage 10 | . . 10 . Projectiles 10 | . . 10 . Explosions . | . . . . Melee . | . . . . Knockbacks 2 | . . 1 1 Impact . | . . . . Kinetic 2 | . . 1 1 Secondary . | . . . . Self-Inflicted Damage . | . . . . Shots . | . . . . Rammed . | . . . . Targets Rammed . | . . . . Kicked . | . . . . Crushed . | . . . . Highest Temperature 88 | . . 88 . Average Temperature 29 | . . 29 . Received Heat Transfer 447 | . . 315 132 Siege Activations . | . . . . Martial Activations . | . . . . Shielding Activations . | . . . . Robots Disrupted . | . . . . Combat Hostiles . | . . . . Robots Corrupted . | . . . . Combat Hostiles . | . . . . Parts Fried . | . . . . Impact Corruptions . | . . . . Robots Melted . | . . . . Combat Hostiles . | . . . . Parts Melted 1 | . . . 1 Heat Transferred . | . . . . Parts Sabotaged . | . . . . Parts Stolen . | . . . . Parts Stripped . | . . . . Power Chain Reactions . | . . . . Alert | -11 -10 -10 -10 ------- Run | Yrd Mat Min Sub Maximum Alert Level . | . . . . Low Security (%) 100 | 100 100 100 . Level 1 . | . . . . Level 2 . | . . . . Level 3 . | . . . . Level 4 . | . . . . Level 5 . | . . . . High Security . | . . . . Max Security . | . . . . Peak Influence 50 | 5 . 50 . Initial . | . . . . Average 5 | . . 7 . Influence Increases 175 | 15 . 160 . Destroy 0b10 Robot/C 120 | . . 120 . Destroy 0b10 Robot/NC 15 | 15 . . . Destroy Leader 30 | . . 30 . Trap Triggered on 0b10 10 | . . 10 . Influence Decreases 175 | 15 . 160 . Time Decay 175 | 15 . 160 . Squads Dispatched . | . . . . Investigation . | . . . . Extermination . | . . . . Reinforcement . | . . . . Assault . | . . . . Garrison . | . . . . Intercept . | . . . . Searches Triggered . | . . . . Construction Impeded . | . . . . Haulers Reinforced . | . . . . Active Scanning Responses . | . . . . Cargo Convoy Interrupts . | . . . . Stealth | -11 -10 -10 -10 --------- Run | Yrd Mat Min Sub Distress Signals . | . . . . Communications Jammed . | . . . . Distress Signals . | . . . . Times Spotted 20 | . 3 6 11 Peak Tracking Total 4 | . 4 2 2 Tactical Retreats 2 | . . . 2 Traps | -11 -10 -10 -10 ------- Run | Yrd Mat Min Sub Traps Triggered 1 | . . . 1 Indirectly . | . . . . Trap Hack Attempts . | . . . . Triggered . | . . . . Disarmed . | . . . . Reprogrammed . | . . . . Reused 1 | . . 1 . Traps Extracted . | . . . . Installed 1 | . . 1 . Triggered 1 | . . 1 . Machines | -11 -10 -10 -10 ---------- Run | Yrd Mat Min Sub Machines Disabled 1 | . . . 1 Max in Single Turn 1 | . . . 1 Machines Repaired . | . . . . Machines Dismantled . | . . . . Machines Sabotaged . | . . . . Overloaded Fab Kills . | . . . . Hacking | -11 -10 -10 -10 --------- Run | Yrd Mat Min Sub Machines Accessed 6 | . 3 . 3 Terminals 3 | . 3 . . Fabricators . | . . . . Repair Stations . | . . . . Recycling Units . | . . . . Scanalyzers . | . . . . Garrison Access . | . . . . Total Hacks 15 | . 3 . 12 Successful 14 | . 2 . 12 Failed 1 | . 1 . . Catastrophic . | . . . . Database Lockouts . | . . . . Manual 3 | . 3 . . Terminals 3 | . 3 . . Fabricators . | . . . . Repair Stations . | . . . . Recycling Units . | . . . . Scanalyzers . | . . . . Garrison Access . | . . . . Terminal Hacks 12 | . . . 12 Record 9 | . . . 9 Open Door 1 | . . . 1 Proto ID Catalog 1 | . . . 1 Release Object 1 | . . . 1 Fabricator Hacks . | . . . . Repair Station Hacks . | . . . . Recycling Unit Hacks . | . . . . Scanalyzer . | . . . . Garrison Access Hacks . | . . . . Unauthorized Hacks 2 | . 2 . . Terminals 2 | . 2 . . Botnet 2 | . 2 . . Fabricators . | . . . . Repair Stations . | . . . . Recycling Units . | . . . . Scanalyzers . | . . . . Garrison Access . | . . . . Data Cores Recovered . | . . . . Used . | . . . . Hacking Detections 1 | . 1 . . Full Trace Events . | . . . . Feedback Events . | . . . . Feedback Blocked . | . . . . Robot Schematics Acquired . | . . . . Robots Built . | . . . . Authchips . | . . . . Time . | . . . . Total Robot Build Rating . | . . . . Part Schematics Acquired . | . . . . Parts Built . | . . . . Authchips . | . . . . Time . | . . . . Total Part Build Rating . | . . . . Parts Repaired . | . . . . Time . | . . . . Parts Recycled . | . . . . Recycled Matter . | . . . . Retrieved Matter . | . . . . Retrieved Components . | . . . . Parts Scanalyzed . | . . . . Part Schematics Acquired . | . . . . Parts Damaged . | . . . . Bothacking | -11 -10 -10 -10 ------------ Run | Yrd Mat Min Sub Used RIF Installer . | . . . . Robots Hacked . | . . . . Non-combat . | . . . . Combat . | . . . . Robot Hacks Applied . | . . . . Relay Couplers Released . | . . . . Fabnet Peak Effective % . | . . . . Robots Rewired . | . . . . Allies Hacked . | . . . . Hacks Repelled . | . . . . Allies | -11 -10 -10 -10 -------- Run | Yrd Mat Min Sub Total Allies . | . . . . Largest Group . | . . . . Highest-Rated Group . | . . . . Highest-Rated Ally . | . . . . Total Orders . | . . . . Ally Attacks . | . . . . Total Damage . | . . . . Kills . | . . . . Allies Corrupted . | . . . . Allies Melted . | . . . . Intel | -11 -10 -10 -10 ------- Run | Yrd Mat Min Sub Active Infowar (turns) 2305 | 43 257 1010 995 Seismic 2305 | 43 257 1010 995 Robot Analysis Total . | . . . . Derelict Logs Recovered 3 | . . 2 1 Drone Launches . | . . . . Drone Recoveries . | . . . . Exploration | -11 -10 -10 -10 ------------- Run | Yrd Mat Min Sub Turns Passed 2433 | 171 257 1010 995 Spaces Moved 1573 | 86 157 567 763 Core 10 | 10 . . . Treads 861 | 76 157 567 61 Legs . | . . . . Wheels 702 | . . . 702 Hover . | . . . . Flight . | . . . . Fastest Speed 50 | 50 160 160 100 Average Speed 136 | 157 160 160 111 Slowest Speed 200 | 200 160 160 160 Overloaded Moves . | . . . . Propulsion Burnouts . | . . . . Robots Hopped . | . . . . Potential Cave-ins . | . . . . Cave-ins Triggered . | . . . . Exploration Rate (%) 47 | 5 28 100 57 Regions Visited 3 Branch Regions 2 Pre-discovered Areas 1 | . . . 1 Known Exits Taken . | . . . . Unknown Exits Taken 3 | 1 1 1 . Scrap Searched 8 | . . 1 7 Spaces Dug . | . . . . Terrain Destroyed 1 | . . . 1 Melee . | . . . . Projectile 1 | . . . 1 AOE . | . . . . Terrain Rammed . | . . . . Walls Destroyed . | . . . . Machines Disabled . | . . . . Actions | -11 -10 -10 -10 --------- Run | Yrd Mat Min Sub Total 1728 | 103 162 618 845 Wait 38 | . . 14 24 Move 1570 | 85 156 566 763 Hop . | . . . . Pick Up 10 | 1 3 1 5 Fast Attach 10 | 7 . . 3 Attach 4 | . . 1 3 Detach . | . . . . Swap 9 | . 2 . 7 Drop 6 | . 1 1 4 Fire 79 | 10 . 34 35 Melee . | . . . . Ram . | . . . . Kick . | . . . . Crush . | . . . . Escape Stasis . | . . . . Rewire . | . . . . Trap 1 | . . 1 . Miscellaneous 1 | . . . 1 Route ------- -11/Scrapyard -10/Materials -10/Mines (discovered 3 exits: *Mat x2 / *Sub) -10/Subcaves History --------- Turn | Location | Event 13 | -11/Scrapyard | Discovered new exit (range 15) 172 | -11/Scrapyard | Entered Materials 315 | -10/Materials | Build established: Mutant 398 | -10/Materials | Discovered new exit (range 16) 429 | -10/Materials | Entered Mines 472 | -10/Mines | Met a Derelict bent on vengeance 523 | -10/Mines | Discovered new exit (range 10) 672 | -10/Mines | Learned 2 Materials zone layouts 725 | -10/Mines | Found a hidden stash of uninstalled traps 774 | -10/Mines | Identified exit to Materials 1429 | -10/Mines | Discovered new exit (range 6) 1439 | -10/Mines | Entered Subcaves 1518 | -10/Subcaves | Learned location of Zion (-6) 1618 | -10/Subcaves | Visited 4L-MR0's lab 1649 | -10/Subcaves | Found Powered Cannon 2130 | -10/Subcaves | Shifting Twisted Machinery released Sub. Beam Cannon 2178 | -10/Subcaves | Shifting Twisted Machinery released Sub. Monowheel 2204 | -10/Subcaves | Core integrity fell below 50% 2305 | -10/Subcaves | Core integrity fell below 20% 2409 | -10/Subcaves | Released subatomizers from SUBCON Basin 2434 | -10/Subcaves | Destroyed by C2-HH1(R) with Subdweller Machine Gun Last Messages --------------- 02322_ Sub. Monowheel shoots sparks and powers down. 02324_ Acquired Sub. Power Source. 02326_ Dropped Broken Sub. Monowheel. 02408_ Connecting with SUBCON Basin Controls... >>Record! "Subatomizer Containment" Subatomizers are really quite dangerous, especially when stimulated during the collection process in preparation for SEP insertion. Secure containment is priority number one! Although mostly just a persistent nuisance in their natural Subcaves environment where a certain balance has been achieved, there is a high probability that sudden introduction into previously unexposed areas could cause more extreme side effects. Take all precautions to prevent this from happening. >>Release Inventory Accessing inventory controls... Collection purity confirmed 100%... Ejecting SUBCON Basin... Delivery behind schedule, handle with care! 02409_ Released subatomizers from SUBCON Basin. 02426_ AF-2WN(R) destroyed. 02433_ C2-HH1(R) affixes Scrap Shield Fragment to Scrap Shield. Map ----- +----------------------------------------------------+ | | | | | | | | | | | | | | | | | | | | | | | | | | | | | | | | | | | | | | | ?????????????????????????????????????????????????? | | ?????????????????????????????????????????????????? | | ?????????????????????########????????????????????? | | ?????????????????????#""""""#????????????????????? | | ?????????????????????#"X""""#????????????????????? | | ?????????????????????#"& [ #????????????????????? | | ?????????????????????#" @R&#????????????????????? | | ?????????????????????#""""%"#????????????????????? | | ?????????????????????#####%##????????????????????? | | ???????????????????????#""&"#????????????????????? | | ??????????????????????## X#????????????????????? | | ?????????????????????## ###???????????????????? | | ?????????????????????# ####!#???????????????????? | | ????????????????????### ## #???????????????????? | | ????????????????????# ###=][&#???????????????????? | | #??#####??########### !!*####????????????????? | | #### # #### # # ##### #????????????????? | | ## ##?## #????????????????? | | ###### # # # # #?## #############?????? | | #????############ ###" # # #"##""###???? | | ##??????????????## " " " """###?? | | ###??????????????## """"" """ ""?? | | #???????????????# " " # ## ## ##" " | | ##???????????????# " ######## #??? | | ##???????????????# ## "" ##??### ##???? # | | #???????????????# ## " #??#""" #??????# | | #???????????????# " ##?# """ ???? | | ##??????????????# ""##?# "#### #? | | #??????????????# ## ""##?####????###### #? | | # ##??????????????## ### " ##????????????????? | | #????????????????#####?# #????????????????? | +----------------------------------------------------+ Best States ------------- Heat Dissipation 25 Energy Generation 15 Energy Capacity 200 Matter Stores 300 Matter Capacity 300 Sight Range 16 Terrain Scan Density 10 Evasion (%) 40 Recoil Reduction 2 Item Schematics ----------------- None Robot Schematics ------------------ None Fabricated ------------ Nothing Repaired ---------- Nothing Alien Tech Used ----------------- None Achievements -------------- None Challenges ------------ None Game ------ Seed SpacefoldSpectralBarrier Manual? 0 Play Time 00:32:19 Cumulative 48.6 hours Start 2025.05.14 @ 18:07:56 End 2025.05.14 @ 18:38:27 Sessions 1 Manual Loads 0 Difficulty Rogue Special Mode None Game No. 53 Rogue 53 Adventurer 0 Explorer 0 Win Type - Total 0 Types 0/0/0/0/0/0/0/0/0/0 Lore% 14 Gallery% 21 Achievement% 21 Wizard Run 0 Options --------- Layout 0 ASCII 0 Keyboard 0 Movement Mouse Keybinds 0 Fullscreen 1 Font 16/TerminusTall Map View 75x55 Zoom Use 0% Tactical HUD 1 Map Filters NONE Filters NONE Steam 1 RUN: afe1229d-f5dd-4e50-958d-2ee99bbd4586